[Event "*** SCC Grand Prix: Titled Tuesday Blitz"]
[Site "Chess.com"]
[Date "2020.08.25"]
[Round "1"]
[White "albano87"]
[Black "Belka1989"]
[Result "1-0"]
[WhiteElo "2559"]
[BlackElo "2232"]
[TimeControl "180+1"]
[EndTime "10:07:43 PDT"]
[Termination "albano87 won by checkmate"]

1. e4 {[%clk 0:02:25.7]} 1... e5 {[%clk 0:03:00]} 2. d4 {[%clk 0:02:25.4]} 2...
exd4 {[%clk 0:02:59.8]} 3. Qxd4 {[%clk 0:02:24.8]} 3... Nc6 {[%clk 0:02:58.4]}
4. Qe3 {[%clk 0:02:25.1]} 4... Nf6 {[%clk 0:02:58.6]} 5. Nc3 {[%clk 0:02:24.7]}
5... Bb4 {[%clk 0:02:57.8]} 6. Bd2 {[%clk 0:02:24.9]} 6... O-O {[%clk
0:02:56.4]} 7. O-O-O {[%clk 0:02:24.9]} 7... Re8 {[%clk 0:02:57.1]} 8. f3 {[%clk
0:02:24.8]} 8... d5 {[%clk 0:02:55]} 9. Qf2 {[%clk 0:02:24.6]} 9... dxe4 {[%clk
0:02:44.4]} 10. Bg5 {[%clk 0:02:23.6]} 10... Bd7 {[%clk 0:02:39.1]} 11. Nd5
{[%clk 0:02:21.6]} 11... e3 {[%clk 0:02:22.9]} 12. Qh4 {[%clk 0:02:14]} 12...
Be7 {[%clk 0:02:15.3]} 13. Nxf6+ {[%clk 0:02:06.9]} 13... Bxf6 {[%clk
0:02:12.1]} 14. Bxf6 {[%clk 0:02:06.6]} 14... gxf6 {[%clk 0:02:11.6]} 15. Bd3
{[%clk 0:01:43.2]} 15... f5 {[%clk 0:02:10]} 16. Qg3+ {[%clk 0:01:43]} 16... Kh8
{[%clk 0:02:08.8]} 17. Bxf5 {[%clk 0:01:41.9]} 17... Bxf5 {[%clk 0:02:00.1]} 18.
Rxd8 {[%clk 0:01:41.1]} 18... Raxd8 {[%clk 0:02:01]} 19. Ne2 {[%clk 0:01:33.3]}
19... Rd2 {[%clk 0:02:00.2]} 20. Qg5 {[%clk 0:01:16.2]} 20... Bg6 {[%clk
0:02:00.3]} 21. Nf4 {[%clk 0:01:00.8]} 21... Rxc2+ {[%clk 0:01:59.3]} 22. Kb1
{[%clk 0:01:00.8]} 22... Rd2+ {[%clk 0:01:33]} 23. Nxg6+ {[%clk 0:01:00.1]}
23... hxg6 {[%clk 0:01:32.7]} 24. Re1 {[%clk 0:01:00.5]} 24... Rd3 {[%clk
0:01:13.7]} 25. a3 {[%clk 0:00:24.2]} 25... e2 {[%clk 0:01:12.1]} 26. Qh4+
{[%clk 0:00:21.2]} 26... Kg8 {[%clk 0:01:11.1]} 27. Kc2 {[%clk 0:00:21.2]} 27...
Rde3 {[%clk 0:00:58.4]} 28. Qf4 {[%clk 0:00:18.8]} 28... R8e5 {[%clk 0:00:48.4]}
29. h4 {[%clk 0:00:17.7]} 29... Ne7 {[%clk 0:00:46.5]} 30. h5 {[%clk 0:00:17.4]}
30... Nd5 {[%clk 0:00:45.7]} 31. Qh4 {[%clk 0:00:14.8]} 31... g5 {[%clk
0:00:39.4]} 32. Qg4 {[%clk 0:00:14.6]} 32... Nf4 {[%clk 0:00:38.1]} 33. Qc8+
{[%clk 0:00:11.7]} 33... Kg7 {[%clk 0:00:37.5]} 34. h6+ {[%clk 0:00:12.2]} 34...
Kxh6 {[%clk 0:00:37]} 35. Qh8+ {[%clk 0:00:09.9]} 35... Kg6 {[%clk 0:00:37.6]}
36. Qg8+ {[%clk 0:00:09.2]} 36... Kf6 {[%clk 0:00:38.1]} 37. Qd8+ {[%clk
0:00:09.6]} 37... Kg7 {[%clk 0:00:38.1]} 38. Rh1 {[%clk 0:00:07.3]} 38... Ng6
{[%clk 0:00:17.3]} 39. Re1 {[%clk 0:00:05.7]} 39... Rc5+ {[%clk 0:00:16.2]} 40.
Kb1 {[%clk 0:00:05.6]} 40... Rce5 {[%clk 0:00:13.4]} 41. Qd4 {[%clk 0:00:06]}
41... c5 {[%clk 0:00:12.7]} 42. Qd2 {[%clk 0:00:05.5]} 42... b6 {[%clk
0:00:13.1]} 43. g3 {[%clk 0:00:05.8]} 43... Ne7 {[%clk 0:00:13]} 44. f4 {[%clk
0:00:05.9]} 44... gxf4 {[%clk 0:00:12.8]} 45. gxf4 {[%clk 0:00:06.8]} 45... R5e4
{[%clk 0:00:13.7]} 46. Rg1+ {[%clk 0:00:06.6]} 46... Kf8 {[%clk 0:00:14]} 47.
Qd8# {[%clk 0:00:06]} 1-0

[Event "*** SCC Grand Prix: Titled Tuesday Blitz"]
[Site "Chess.com"]
[Date "2020.08.25"]
[Round "1"]
[White "shanemelaughcm"]
[Black "Artyom_ChessMate"]
[Result "0-1"]
[WhiteElo "2217"]
[BlackElo "2550"]
[TimeControl "180+1"]
[EndTime "10:07:43 PDT"]
[Termination "Artyom_ChessMate won on time"]

1. e4 {[%clk 0:02:59.7]} 1... c5 {[%clk 0:02:57.1]} 2. c4 {[%clk 0:02:59.7]}
2... d6 {[%clk 0:02:54.6]} 3. Nc3 {[%clk 0:03:00.2]} 3... Nf6 {[%clk 0:02:54]}
4. g3 {[%clk 0:03:00.2]} 4... g6 {[%clk 0:02:54.3]} 5. Bg2 {[%clk 0:03:00.8]}
5... Bg7 {[%clk 0:02:54.9]} 6. Nge2 {[%clk 0:03:01.6]} 6... O-O {[%clk
0:02:55.4]} 7. O-O {[%clk 0:03:01.5]} 7... Nc6 {[%clk 0:02:56]} 8. a3 {[%clk
0:03:01.7]} 8... Rb8 {[%clk 0:02:53.1]} 9. Rb1 {[%clk 0:02:59.6]} 9... a5 {[%clk
0:02:52.6]} 10. d3 {[%clk 0:02:58.9]} 10... Bd7 {[%clk 0:02:29.2]} 11. f4 {[%clk
0:02:55.3]} 11... Nd4 {[%clk 0:02:26.1]} 12. a4 {[%clk 0:02:47]} 12... Nc6
{[%clk 0:02:20.3]} 13. h3 {[%clk 0:02:40.3]} 13... Nb4 {[%clk 0:02:20.3]} 14. g4
{[%clk 0:02:37.1]} 14... Bc6 {[%clk 0:02:18.4]} 15. b3 {[%clk 0:02:30]} 15...
Qc7 {[%clk 0:02:01.6]} 16. Bb2 {[%clk 0:02:27.5]} 16... Rbd8 {[%clk 0:01:56.6]}
17. Ng3 {[%clk 0:02:11]} 17... e6 {[%clk 0:01:36]} 18. g5 {[%clk 0:02:01.4]}
18... Nd7 {[%clk 0:01:34]} 19. f5 {[%clk 0:01:43.2]} 19... Bd4+ {[%clk
0:01:26.2]} 20. Kh2 {[%clk 0:01:39.5]} 20... Ne5 {[%clk 0:01:10.5]} 21. Nb5
{[%clk 0:01:10.3]} 21... Bxb5 {[%clk 0:01:08.2]} 22. axb5 {[%clk 0:01:11.2]}
22... Nbxd3 {[%clk 0:01:02.6]} 23. Bxd4 {[%clk 0:01:10.4]} 23... cxd4 {[%clk
0:01:03.5]} 24. Qd2 {[%clk 0:00:31.7]} 24... b6 {[%clk 0:00:52.8]} 25. Rbd1
{[%clk 0:00:26.3]} 25... Nc5 {[%clk 0:00:44.9]} 26. Qxd4 {[%clk 0:00:17.4]}
26... Nxb3 {[%clk 0:00:45]} 27. Qe3 {[%clk 0:00:16.5]} 27... a4 {[%clk
0:00:43.4]} 28. f6 {[%clk 0:00:12.1]} 28... Nxc4 {[%clk 0:00:43]} 29. Qf4 {[%clk
0:00:12.5]} 29... Kh8 {[%clk 0:00:31.6]} 30. Rf3 {[%clk 0:00:07.9]} 30... Qc5
{[%clk 0:00:25.7]} 31. Rc3 {[%clk 0:00:08.1]} 31... Qe5 {[%clk 0:00:18.7]} 32.
Qf2 {[%clk 0:00:04.4]} 32... d5 {[%clk 0:00:16.6]} 33. Rcd3 {[%clk 0:00:04.1]}
33... Nc5 {[%clk 0:00:13.3]} 34. Rd4 {[%clk 0:00:03.2]} 34... a3 {[%clk
0:00:12.5]} 35. exd5 {[%clk 0:00:03.3]} 35... exd5 {[%clk 0:00:13.4]} 36. Rxd5
{[%clk 0:00:03.8]} 36... Rxd5 {[%clk 0:00:13.3]} 37. Rxd5 {[%clk 0:00:04.7]}
37... Qb2 {[%clk 0:00:12.9]} 38. Qf4 {[%clk 0:00:02.5]} 38... Ne6 {[%clk
0:00:11.9]} 39. Qh4 {[%clk 0:00:01.9]} 39... Ne3 {[%clk 0:00:11.3]} 0-1

[Event "*** SCC Grand Prix: Titled Tuesday Blitz"]
[Site "Chess.com"]
[Date "2020.08.25"]
[Round "1"]
[White "Euge_chess"]
[Black "AlexSuv"]
[Result "0-1"]
[WhiteElo "2063"]
[BlackElo "2487"]
[TimeControl "180+1"]
[EndTime "10:07:43 PDT"]
[Termination "AlexSuv won on time"]

1. e4 {[%clk 0:03:00.9]} 1... c5 {[%clk 0:02:58.6]} 2. c3 {[%clk 0:03:00]} 2...
Nf6 {[%clk 0:02:58.1]} 3. e5 {[%clk 0:02:59.7]} 3... Nd5 {[%clk 0:02:58.1]} 4.
g3 {[%clk 0:03:00.1]} 4... Nc6 {[%clk 0:02:55]} 5. Bg2 {[%clk 0:03:00.1]} 5...
e6 {[%clk 0:02:53.5]} 6. Nf3 {[%clk 0:02:56.5]} 6... d6 {[%clk 0:02:47.3]} 7.
exd6 {[%clk 0:02:55.7]} 7... Bxd6 {[%clk 0:02:48.2]} 8. O-O {[%clk 0:02:55.7]}
8... O-O {[%clk 0:02:48]} 9. d4 {[%clk 0:02:55.6]} 9... cxd4 {[%clk 0:02:25.6]}
10. Nxd4 {[%clk 0:02:55]} 10... Bd7 {[%clk 0:02:24.3]} 11. Nb5 {[%clk
0:02:29.9]} 11... Bb8 {[%clk 0:02:06.4]} 12. N1a3 {[%clk 0:02:21.1]} 12... a6
{[%clk 0:02:01.1]} 13. Nd4 {[%clk 0:02:20]} 13... Qf6 {[%clk 0:01:48.9]} 14. Nc4
{[%clk 0:02:09.9]} 14... Nxd4 {[%clk 0:01:47.6]} 15. Qxd4 {[%clk 0:02:06.9]}
15... Qxd4 {[%clk 0:01:47.3]} 16. cxd4 {[%clk 0:02:06.4]} 16... Ba7 {[%clk
0:01:40.2]} 17. Ne5 {[%clk 0:01:59.3]} 17... Bb5 {[%clk 0:01:33.9]} 18. Rd1
{[%clk 0:01:59.1]} 18... Rac8 {[%clk 0:01:31.3]} 19. a4 {[%clk 0:01:49.4]} 19...
Be2 {[%clk 0:01:28.9]} 20. Re1 {[%clk 0:01:38.5]} 20... Bh5 {[%clk 0:01:27]} 21.
g4 {[%clk 0:01:31.9]} 21... Bg6 {[%clk 0:01:26.7]} 22. Nxg6 {[%clk 0:01:30.4]}
22... hxg6 {[%clk 0:01:26.6]} 23. Bxd5 {[%clk 0:01:27.6]} 23... exd5 {[%clk
0:01:26.2]} 24. Be3 {[%clk 0:01:27.8]} 24... Rc2 {[%clk 0:01:22.6]} 25. b4
{[%clk 0:01:22.4]} 25... Rc4 {[%clk 0:01:18.7]} 26. b5 {[%clk 0:01:21]} 26...
axb5 {[%clk 0:01:17.5]} 27. axb5 {[%clk 0:01:19.8]} 27... Bxd4 {[%clk
0:01:17.9]} 28. Rad1 {[%clk 0:01:11.9]} 28... Bxe3 {[%clk 0:01:16.4]} 29. Rxe3
{[%clk 0:01:10.2]} 29... Rxg4+ {[%clk 0:01:16.4]} 30. Kf1 {[%clk 0:01:08.8]}
30... d4 {[%clk 0:01:15.4]} 31. Re7 {[%clk 0:01:07.3]} 31... Rb8 {[%clk
0:00:57.5]} 32. Rd7 {[%clk 0:01:05.2]} 32... Rg5 {[%clk 0:00:57]} 33. Rb1 {[%clk
0:00:33.4]} 33... Rh5 {[%clk 0:00:55.7]} 34. Kg2 {[%clk 0:00:28.7]} 34... Rg5+
{[%clk 0:00:50.6]} 35. Kf3 {[%clk 0:00:26.1]} 35... Rc8 {[%clk 0:00:45.4]} 36.
Rxd4 {[%clk 0:00:18.8]} 36... Rcc5 {[%clk 0:00:42.9]} 37. b6 {[%clk 0:00:12.6]}
37... Rb5 {[%clk 0:00:36.4]} 38. Rc1 {[%clk 0:00:11.4]} 38... Rxb6 {[%clk
0:00:34.6]} 39. Rd8+ {[%clk 0:00:10.5]} 39... Kh7 {[%clk 0:00:34.9]} 40. Rd7
{[%clk 0:00:10.7]} 40... Rf5+ {[%clk 0:00:34.6]} 41. Kg3 {[%clk 0:00:09.1]}
41... Rb3+ {[%clk 0:00:34.5]} 42. Kg2 {[%clk 0:00:08.1]} 42... Rb2 {[%clk
0:00:35.1]} 43. Rc3 {[%clk 0:00:06.4]} 43... Rbxf2+ {[%clk 0:00:32.7]} 44. Kg1
{[%clk 0:00:06.7]} 44... g5 {[%clk 0:00:32]} 45. Rxb7 {[%clk 0:00:06]} 45... g4
{[%clk 0:00:28.2]} 46. Rc4 {[%clk 0:00:05]} 46... R2f4 {[%clk 0:00:28.4]} 47.
Rc3 {[%clk 0:00:04.4]} 47... g5 {[%clk 0:00:25.8]} 0-1

[Event "*** SCC Grand Prix: Titled Tuesday Blitz"]
[Site "Chess.com"]
[Date "2020.08.25"]
[Round "1"]
[White "Mazetovic"]
[Black "Tssunami"]
[Result "1-0"]
[WhiteElo "2678"]
[BlackElo "2348"]
[TimeControl "180+1"]
[EndTime "10:07:44 PDT"]
[Termination "Mazetovic won by resignation"]

1. e4 {[%clk 0:02:58.1]} 1... c6 {[%clk 0:02:59.8]} 2. d4 {[%clk 0:02:57.3]}
2... d5 {[%clk 0:03:00.4]} 3. e5 {[%clk 0:02:54.6]} 3... Bf5 {[%clk 0:03:00.2]}
4. Nf3 {[%clk 0:02:53.5]} 4... e6 {[%clk 0:02:57.8]} 5. Be2 {[%clk 0:02:53.5]}
5... Nd7 {[%clk 0:02:56.3]} 6. O-O {[%clk 0:02:52.5]} 6... c5 {[%clk 0:02:49.8]}
7. c4 {[%clk 0:02:48.3]} 7... Ne7 {[%clk 0:02:43.1]} 8. Nc3 {[%clk 0:02:47.5]}
8... cxd4 {[%clk 0:02:34.4]} 9. Nxd4 {[%clk 0:02:47.1]} 9... Nxe5 {[%clk
0:02:32.3]} 10. Nxf5 {[%clk 0:02:45.6]} 10... Nxf5 {[%clk 0:02:30.3]} 11. cxd5
{[%clk 0:02:45]} 11... Bd6 {[%clk 0:02:10.2]} 12. Bb5+ {[%clk 0:02:35]} 12...
Kf8 {[%clk 0:02:02.5]} 13. dxe6 {[%clk 0:02:29.1]} 13... fxe6 {[%clk 0:01:53.8]}
14. Ne4 {[%clk 0:02:10.2]} 14... Be7 {[%clk 0:01:12.9]} 15. Ba4 {[%clk
0:01:45.9]} 15... Qxd1 {[%clk 0:01:11]} 16. Rxd1 {[%clk 0:01:45.1]} 16... Rd8
{[%clk 0:01:01.2]} 17. Bf4 {[%clk 0:01:37.6]} 17... Nc4 {[%clk 0:00:47.6]} 18.
Rxd8+ {[%clk 0:01:31.3]} 18... Bxd8 {[%clk 0:00:47]} 19. Rd1 {[%clk 0:01:16.3]}
19... Kf7 {[%clk 0:00:23.2]} 20. Bb3 {[%clk 0:01:14.7]} 20... b5 {[%clk
0:00:19.3]} 21. Rd7+ {[%clk 0:01:13.5]} 21... Be7 {[%clk 0:00:17.5]} 22. g4
{[%clk 0:00:53.2]} 22... Nh4 {[%clk 0:00:03.6]} 23. Kf1 {[%clk 0:00:46.5]} 23...
Rd8 {[%clk 0:00:03.5]} 24. Rxe7+ {[%clk 0:00:42.2]} 24... Kxe7 {[%clk
0:00:03.2]} 25. Bg5+ {[%clk 0:00:42.6]} 25... Ke8 {[%clk 0:00:03.7]} 26. Bxh4
{[%clk 0:00:40.4]} 26... Rd4 {[%clk 0:00:03.3]} 27. f3 {[%clk 0:00:37.1]} 27...
Nd2+ {[%clk 0:00:03.3]} 28. Ke2 {[%clk 0:00:20.6]} 28... Nxb3 {[%clk 0:00:03.2]}
29. axb3 {[%clk 0:00:20.1]} 29... e5 {[%clk 0:00:03.1]} 30. Be1 {[%clk
0:00:19.2]} 30... Ke7 {[%clk 0:00:03]} 31. Bc3 {[%clk 0:00:19.2]} 31... Rd5
{[%clk 0:00:03.4]} 32. b4 {[%clk 0:00:19.6]} 32... h6 {[%clk 0:00:03.6]} 33. h4
{[%clk 0:00:19]} 33... Ke6 {[%clk 0:00:03.6]} 34. h5 {[%clk 0:00:19.4]} 34...
Rd8 {[%clk 0:00:03.5]} 35. Ng3 {[%clk 0:00:19.4]} 35... Rd7 {[%clk 0:00:02.7]}
36. Nf5 {[%clk 0:00:19.6]} 36... Rc7 {[%clk 0:00:02.5]} 37. Ke3 {[%clk
0:00:19.3]} 37... Kd5 {[%clk 0:00:02.8]} 38. f4 {[%clk 0:00:19.1]} 38... exf4+
{[%clk 0:00:02.7]} 39. Kxf4 {[%clk 0:00:19.5]} 39... Rc4+ {[%clk 0:00:02.8]} 40.
Kf3 {[%clk 0:00:19.4]} 40... Rc7 {[%clk 0:00:01.9]} 41. Bxg7 {[%clk 0:00:19.3]}
41... Kc4 {[%clk 0:00:02]} 42. Bc3 {[%clk 0:00:19.5]} 42... a5 {[%clk
0:00:01.1]} 43. bxa5 {[%clk 0:00:19.8]} 43... b4 {[%clk 0:00:02]} 44. Bd2 {[%clk
0:00:19.3]} 44... Rc6 {[%clk 0:00:02.6]} 45. Bxh6 {[%clk 0:00:18.6]} 45... Ra6
{[%clk 0:00:02.9]} 46. Bg7 {[%clk 0:00:18.8]} 46... Rxa5 {[%clk 0:00:03.3]} 47.
h6 {[%clk 0:00:19.3]} 47... Ra8 {[%clk 0:00:03.5]} 48. h7 {[%clk 0:00:19.7]}
48... Kd3 {[%clk 0:00:03.8]} 49. h8=Q {[%clk 0:00:20]} 49... Rxh8 {[%clk
0:00:04]} 50. Bxh8 {[%clk 0:00:20.5]} 1-0

[Event "*** SCC Grand Prix: Titled Tuesday Blitz"]
[Site "Chess.com"]
[Date "2020.08.25"]
[Round "1"]
[White "nitpicker"]
[Black "Keithonsky"]
[Result "0-1"]
[WhiteElo "2216"]
[BlackElo "2547"]
[TimeControl "180+1"]
[EndTime "10:07:44 PDT"]
[Termination "Keithonsky won on time"]

1. d4 {[%clk 0:02:58.5]} 1... d5 {[%clk 0:02:57.3]} 2. c4 {[%clk 0:02:56.7]}
2... e6 {[%clk 0:02:57.3]} 3. Nf3 {[%clk 0:02:56]} 3... a6 {[%clk 0:02:56.9]} 4.
cxd5 {[%clk 0:02:54.8]} 4... exd5 {[%clk 0:02:57.8]} 5. Nc3 {[%clk 0:02:54.7]}
5... Nf6 {[%clk 0:02:56.9]} 6. Bf4 {[%clk 0:02:54.5]} 6... Be6 {[%clk 0:02:56]}
7. e3 {[%clk 0:02:53.7]} 7... Bd6 {[%clk 0:02:56.2]} 8. Bg3 {[%clk 0:02:52.6]}
8... O-O {[%clk 0:02:55.6]} 9. Bd3 {[%clk 0:02:52.5]} 9... h6 {[%clk 0:02:54.6]}
10. O-O {[%clk 0:02:51.8]} 10... Bxg3 {[%clk 0:02:53.8]} 11. hxg3 {[%clk
0:02:51]} 11... Nbd7 {[%clk 0:02:54.7]} 12. Qc2 {[%clk 0:02:45.6]} 12... c5
{[%clk 0:02:53]} 13. dxc5 {[%clk 0:02:31.7]} 13... Nxc5 {[%clk 0:02:51]} 14. Be2
{[%clk 0:02:31.5]} 14... Rc8 {[%clk 0:02:49.6]} 15. Rac1 {[%clk 0:02:06.2]}
15... Nce4 {[%clk 0:02:44.4]} 16. Nd4 {[%clk 0:01:58]} 16... Bd7 {[%clk
0:02:40.4]} 17. Rfd1 {[%clk 0:01:54.5]} 17... Nxc3 {[%clk 0:02:33.4]} 18. bxc3
{[%clk 0:01:53.8]} 18... b5 {[%clk 0:02:31.6]} 19. Bd3 {[%clk 0:01:41.9]} 19...
Bg4 {[%clk 0:02:26.5]} 20. Re1 {[%clk 0:01:36.6]} 20... Qa5 {[%clk 0:02:25.9]}
21. Qb3 {[%clk 0:01:28.1]} 21... Rfd8 {[%clk 0:02:21.8]} 22. f3 {[%clk
0:01:27.1]} 22... Bd7 {[%clk 0:02:20]} 23. Bf5 {[%clk 0:01:25.9]} 23... Qc7
{[%clk 0:02:14.7]} 24. Kf2 {[%clk 0:01:19.6]} 24... g6 {[%clk 0:02:10]} 25. Bd3
{[%clk 0:01:15.7]} 25... Kg7 {[%clk 0:02:07.1]} 26. g4 {[%clk 0:01:13.6]} 26...
Qe5 {[%clk 0:01:58.3]} 27. Qb1 {[%clk 0:01:02.4]} 27... Rc7 {[%clk 0:01:55.8]}
28. Rc2 {[%clk 0:00:56.1]} 28... Rdc8 {[%clk 0:01:55.1]} 29. Qc1 {[%clk
0:00:56.3]} 29... h5 {[%clk 0:01:52.4]} 30. gxh5 {[%clk 0:00:54.2]} 30... Nxh5
{[%clk 0:01:53.3]} 31. f4 {[%clk 0:00:49.3]} 31... Qf6 {[%clk 0:01:50.1]} 32. g3
{[%clk 0:00:48.7]} 32... Bg4 {[%clk 0:01:39.3]} 33. e4 {[%clk 0:00:46.5]} 33...
Rxc3 {[%clk 0:01:36]} 34. e5 {[%clk 0:00:42]} 34... Qb6 {[%clk 0:01:33.5]} 35.
Qe3 {[%clk 0:00:37.6]} 35... Rxc2+ {[%clk 0:01:26.2]} 36. Bxc2 {[%clk 0:00:37]}
36... Rc4 {[%clk 0:01:24]} 37. Nf5+ {[%clk 0:00:36.2]} 37... Bxf5 {[%clk
0:01:22.3]} 38. Qxb6 {[%clk 0:00:36.8]} 38... Rxc2+ {[%clk 0:01:22.5]} 39. Kf3
{[%clk 0:00:32.8]} 39... Be4+ {[%clk 0:01:19.3]} 40. Rxe4 {[%clk 0:00:28.4]}
40... dxe4+ {[%clk 0:01:18.8]} 41. Kxe4 {[%clk 0:00:29]} 41... Nxg3+ {[%clk
0:01:19.4]} 42. Kf3 {[%clk 0:00:29.2]} 42... Nf5 {[%clk 0:01:19.3]} 43. Qf6+
{[%clk 0:00:28.1]} 43... Kg8 {[%clk 0:01:15.6]} 44. Qxa6 {[%clk 0:00:27.5]}
44... Rc4 {[%clk 0:01:10.3]} 45. Ke2 {[%clk 0:00:21.5]} 45... Rxf4 {[%clk
0:01:09]} 46. Kd2 {[%clk 0:00:15.6]} 46... Rd4+ {[%clk 0:01:08.2]} 47. Kc3
{[%clk 0:00:14.6]} 47... Rc4+ {[%clk 0:01:00.4]} 48. Kb2 {[%clk 0:00:13.3]}
48... Rc5 {[%clk 0:00:55.8]} 49. e6 {[%clk 0:00:10.9]} 49... Rc7 {[%clk
0:00:53.7]} 50. exf7+ {[%clk 0:00:07.9]} 50... Kxf7 {[%clk 0:00:54.6]} 51. Qxb5
{[%clk 0:00:07.9]} 51... Re7 {[%clk 0:00:52.7]} 52. Qd5+ {[%clk 0:00:06.9]}
52... Kf6 {[%clk 0:00:52.2]} 53. a4 {[%clk 0:00:06.9]} 53... Re2+ {[%clk
0:00:52.7]} 54. Kc3 {[%clk 0:00:06.1]} 54... Re5 {[%clk 0:00:52.6]} 55. Qc6+
{[%clk 0:00:05.1]} 55... Re6 {[%clk 0:00:53]} 56. Qd7 {[%clk 0:00:03.5]} 56...
Re3+ {[%clk 0:00:52.7]} 57. Kb4 {[%clk 0:00:02.6]} 57... Re4+ {[%clk 0:00:53]}
58. Kb5 {[%clk 0:00:02.1]} 58... Re5+ {[%clk 0:00:52.8]} 0-1

[Event "*** SCC Grand Prix: Titled Tuesday Blitz"]
[Site "Chess.com"]
[Date "2020.08.25"]
[Round "1"]
[White "Artooooo"]
[Black "allvim"]
[Result "1-0"]
[WhiteElo "2793"]
[BlackElo "2404"]
[TimeControl "180+1"]
[EndTime "10:07:47 PDT"]
[Termination "Artooooo won by checkmate"]

1. b3 {[%clk 0:03:00.9]} 1... Nf6 {[%clk 0:02:58.7]} 2. Bb2 {[%clk 0:03:01.8]}
2... e6 {[%clk 0:02:59.3]} 3. Nf3 {[%clk 0:02:59.8]} 3... b6 {[%clk 0:02:59.7]}
4. e3 {[%clk 0:03:00]} 4... Bb7 {[%clk 0:03:00.1]} 5. d4 {[%clk 0:03:00.6]} 5...
Be7 {[%clk 0:03:00.4]} 6. Nbd2 {[%clk 0:03:01.1]} 6... O-O {[%clk 0:03:01.1]} 7.
Bd3 {[%clk 0:03:01.5]} 7... d6 {[%clk 0:03:01.5]} 8. O-O {[%clk 0:03:02.1]} 8...
c5 {[%clk 0:03:02.1]} 9. a4 {[%clk 0:03:02.6]} 9... Nc6 {[%clk 0:03:02.1]} 10.
c3 {[%clk 0:02:43.8]} 10... Rc8 {[%clk 0:02:59.8]} 11. Qe2 {[%clk 0:02:43.7]}
11... Qc7 {[%clk 0:02:57.2]} 12. Rfd1 {[%clk 0:02:43.1]} 12... Rfd8 {[%clk
0:02:55.5]} 13. Rac1 {[%clk 0:02:37.5]} 13... Qb8 {[%clk 0:02:51.1]} 14. h3
{[%clk 0:02:29.5]} 14... Qa8 {[%clk 0:02:50]} 15. Ba6 {[%clk 0:02:29.2]} 15...
h6 {[%clk 0:02:16.9]} 16. Bxb7 {[%clk 0:02:27.4]} 16... Qxb7 {[%clk 0:02:17.8]}
17. c4 {[%clk 0:02:21.1]} 17... Nb4 {[%clk 0:02:09.4]} 18. e4 {[%clk 0:01:59.7]}
18... cxd4 {[%clk 0:01:49.8]} 19. Nxd4 {[%clk 0:02:00.6]} 19... a6 {[%clk
0:01:48.5]} 20. Ba3 {[%clk 0:01:38.8]} 20... Nc6 {[%clk 0:01:44.3]} 21. Nxc6
{[%clk 0:01:33.1]} 21... Rxc6 {[%clk 0:01:41.7]} 22. Nf3 {[%clk 0:01:28.1]}
22... Rcc8 {[%clk 0:01:37.8]} 23. Re1 {[%clk 0:01:27.9]} 23... Nd7 {[%clk
0:01:14.5]} 24. Bb2 {[%clk 0:00:47.9]} 24... Bf6 {[%clk 0:01:09.1]} 25. Bxf6
{[%clk 0:00:45.7]} 25... Nxf6 {[%clk 0:01:10]} 26. Rcd1 {[%clk 0:00:46.1]} 26...
d5 {[%clk 0:00:59.2]} 27. cxd5 {[%clk 0:00:30.7]} 27... exd5 {[%clk 0:01:00.1]}
28. e5 {[%clk 0:00:31.1]} 28... Ne4 {[%clk 0:00:58]} 29. Rd3 {[%clk 0:00:30.9]}
29... Re8 {[%clk 0:00:21.9]} 30. Qe3 {[%clk 0:00:24.7]} 30... Rc2 {[%clk
0:00:17.5]} 31. Re2 {[%clk 0:00:19.1]} 31... Rec8 {[%clk 0:00:16.6]} 32. Kh2
{[%clk 0:00:17.2]} 32... Qc6 {[%clk 0:00:14.6]} 33. Nd4 {[%clk 0:00:17.1]} 33...
Rxe2 {[%clk 0:00:13.3]} 34. Qxe2 {[%clk 0:00:15]} 34... Qc7 {[%clk 0:00:13.4]}
35. f4 {[%clk 0:00:15.1]} 35... Qc1 {[%clk 0:00:09.5]} 36. Qg4 {[%clk
0:00:14.9]} 36... Nf2 {[%clk 0:00:06.4]} 37. Qf3 {[%clk 0:00:14.9]} 37... Nxd3
{[%clk 0:00:06.3]} 38. Qxd3 {[%clk 0:00:15.8]} 38... Qc3 {[%clk 0:00:06.8]} 39.
Qf5 {[%clk 0:00:15.7]} 39... Re8 {[%clk 0:00:05.8]} 40. Qd7 {[%clk 0:00:14.5]}
40... Rf8 {[%clk 0:00:05.9]} 41. Nf5 {[%clk 0:00:15.1]} 41... d4 {[%clk
0:00:05.4]} 42. e6 {[%clk 0:00:08.2]} 42... fxe6 {[%clk 0:00:05.7]} 43. Qxg7#
{[%clk 0:00:08]} 1-0